Workbook

Sheet Sheet1
A1: Problem 8.4 Erdman Vol1 pp555 | H1: =+PI()/180 -> 0.01745329252 | V1: 8
I2: Three position synthesis | O2: A0 | P2: 0 | Q2: 0 | S2: 0 | T2: 0
A3: d2 | B3: -15 | C3: 28 | D3: a2 | E3: 30 | F3: =+E3*D_R -> 0.5235987756 | I3: Crank angle specification | O3: A | P3: =+P2+C14 -> 15.25689218 | Q3: =+Q2+D14 -> 3.488613596 | S3: =+S2+F14*COS((L18+G19)*D_R) -> -13.43212584 | T3: =+T2+F14*SIN((L18+G19)*D_R) -> -8.032507659
A4: d3 | B4: -42 | C4: 32 | D4: a3 | E4: 90 | F4: =+E4*D_R -> 1.570796327 | O4: B | P4: =+P3+C18 -> 43.73421566 | Q4: =+Q3+D18 -> -25.33824144 | S4: =+S5+F16*COS(N18) -> 15.39472919 | T4: =+T5+F16*SIN(N18) -> 20.44481582
O5: B0 | P5: =+P2+C19 -> -1.371653 | Q5: =+Q2+D19 -> -21.59602175 | S5: =+P5 -> -1.371653 | T5: =+Q5 -> -21.59602175
A6: b2 | B6: 90 | C6: =+B6*D_R -> 1.570796327 | E6: b2 | F6: 40 | G6: =+F6*D_R -> 0.6981317008 | O6: B | P6: =+P4 -> 43.73421566 | Q6: =+Q4 -> -25.33824144 | S6: =+S4 -> 15.39472919 | T6: =+T4 -> 20.44481582 | V6: =+V7-V1*SIN(P18) -> -6.327056202 | W6: =+W7+V1*COS(P18) -> 20.38354396
A7: b3 | B7: 198 | C7: =+B7*D_R -> 3.455751919 | E7: b3 | F7: 73 | G7: =+F7*D_R -> 1.274090354 | O7: C | P7: =P3+C15 -> 43.6729438 | Q7: =D14+D15 -> -11.61645604 | S7: =+S3+F15*COS(M18+I15*D_R) -> 1.672943798 | T7: =+T8+F15*SIN(M18+I15*D_R) -> 20.38354396 | V7: =+S7 -> 1.672943798 | W7: =+T7 -> 20.38354396
A8: Wax | B8: Way | C8: Zax | D8: Zay | E8: Wbx | F8: Wby | G8: Zbx | H8: Zby | I8: ABx | J8: ABy | K8: AoBox | L8: AoBoy | O8: A | P8: =+P3 -> 15.25689218 | Q8: =+Q3 -> 3.488613596 | S8: =+S3 -> -13.43212584 | T8: =+T3 -> -8.032507659 | V8: =+V7+V1*COS(P18) -> 1.672943798 | W8: =+W7+V1*SIN(P18) -> 28.38354396
A9: =ThreePosition_Basic(F3,F4,B3:C3,B4:C4,C6,C7) -> 15.25689218 | B9: 3.488613596 | C9: 28.41605162 | D9: -15.10506964 | E9: =ThreePosition_Basic(F3,F4,B3:C3,B4:C4,G6,G7) -> 45.10586866 | F9: -3.742219684 | G9: -0.06127185884 | H9: 13.7217854 | I9: =+C9-G9 -> 28.47732347 | J9: =+D9-H9 -> -28.82685503 | K9: =+A9+I9-E9 -> -1.371653 | L9: =+B9+J9-F9 -> -21.59602175 | O9: B | P9: =+P6 -> 43.73421566 | Q9: =+Q6 -> -25.33824144 | S9: =+S4 -> 15.39472919 | T9: =+T4 -> 20.44481582
A11: Note thet we apply ThreePosition_Basic() function twice | S11: =+S12 -> 43.6729438 | T11: =+T12+V1 -> -3.616456043
L12: Analysis | S12: =+P7 -> 43.6729438 | T12: =+Q7 -> -11.61645604
C13: x | D13: y | F13: r | G13: q | S13: =+S12+V1 -> 51.6729438 | T13: =+T12 -> -11.61645604
A14: Z1 | B14: WA | C14: =+A9 -> 15.25689218 | D14: =+B9 -> 3.488613596 | E14: a2 | F14: =+mag(A9,B9) -> 15.65066081 | G14: =+ATAN2(A9,B9)/D_R -> 12.87972659 | L14: q0 | M14: =+G14-G19 -> 106.5139378 | N14: qf | O14: =+M14+B7 -> 304.5139378
A15: Z2 | B15: ZA | C15: =+C9 -> 28.41605162 | D15: =+D9 -> -15.10506964 | E15: b3 | F15: =+mag(C9,D9) -> 32.18128522 | G15: =+ATAN2(C9,D9)/D_R -> -27.99369151 | H15: a3 | I15: =+G15-G18 -> 17.35578448 | M15: =+B7/66 -> 3 | S15: =+S16-V1*SIN(F3) -> 24.6729438 | T15: =+T16+V1*COS(F3) -> 23.31174719
A16: Z3 | B16: WB | C16: =+E9 -> 45.10586866 | D16: =+F9 -> -3.742219684 | E16: a4 | F16: =+mag(E9,F9) -> 45.26083954 | G16: =+ATAN2(E9,F9)/D_R -> -4.742696896 | S16: =+S12+B3 -> 28.6729438 | T16: =+T12+C3 -> 16.38354396
A17: Z4 | B17: ZB | C17: =+G9 -> -0.06127185884 | D17: =+H9 -> 13.7217854 | E17: c3 | F17: =+mag(G9,H9) -> 13.72192219 | G17: =+ATAN2(G9,H9)/D_R -> 90.25584102 | L17: q | M17: q13 | N17: q14 | S17: =+S16+V1*COS(F3) -> 35.60114703 | T17: =+T16+V1*SIN(F3) -> 20.38354396
A18: Z5 | B18: AB | C18: =+I9 -> 28.47732347 | D18: =+J9 -> -28.82685503 | E18: a3 | F18: =+mag(I9,J9) -> 40.52092698 | G18: =+ATAN2(I9,J9)/D_R -> -45.34947599 | K18: 66 | L18: =+$M$14+K18*$M$15 -> 304.5139378 | M18: =FourBar2($F$14,$F$18,$F$16,$F$19,1,L18*D_R)+$G$19*D_R -> 0.7792986566 | N18: 1.191314678 | P18: =(M19-G18)*D_R -> 1.570796327
A19: Z6 | B19: AoBo | C19: =+K9 -> -1.371653 | D19: =+L9 -> -21.59602175 | E19: a1 | F19: =+mag(K9,L9) -> 21.6395376 | G19: =+ATAN2(K9,L9)/D_R -> -93.63421121 | M19: =+M18/D_R -> 44.65052401 | N19: =+N18/D_R -> 68.2573031 | S19: =+S20-V1*SIN(F4) -> -6.327056202 | T19: =+T20+V1*COS(F4) -> 20.38354396
S20: =+S12+B4 -> 1.672943798 | T20: =+T12+C4 -> 20.38354396
S21: =+S20+V1*COS(F4) -> 1.672943798 | T21: =+T20+V1*SIN(F4) -> 28.38354396
M27: -15 | N27: 27.5
M28: -42.5 | N28: 32.5

Sheet Sheet2

Sheet Sheet3
